[Event "Live Chess"]
[Site "Chess.com"]
[Date "2010.12.06"]
[Round "-"]
[White "Mashdy"]
[Black "hipposcottimus"]
[Result "0-1"]
[CurrentPosition "r5k1/pp4pp/3p4/8/3q1N2/4N1P1/P1n2K1P/5B2 w - -"]
[Timezone "UTC"]
[ECO "C20"]
[ECOUrl "https://www.chess.com/openings/Kings-Pawn-Opening-Leonardis-Variation"]
[UTCDate "2010.12.06"]
[UTCTime "00:24:55"]
[WhiteElo "1324"]
[BlackElo "1534"]
[TimeControl "60"]
[Termination "hipposcottimus won on time"]
[StartTime "00:24:55"]
[EndDate "2010.12.06"]
[EndTime "00:26:33"]
[Link "https://www.chess.com/game/live/74438752"]

1. e4 {[%clk 0:01:00]} 1... e5 {[%clk 0:01:00]} 2. d3 {[%clk 0:00:59.3]} 2... Nc6 {[%clk 0:00:59.6]} 3. Nf3 {[%clk 0:00:58.9]} 3... Nf6 {[%clk 0:00:58.8]} 4. Be2 {[%clk 0:00:58]} 4... d5 {[%clk 0:00:58.5]} 5. exd5 {[%clk 0:00:56.6]} 5... Nxd5 {[%clk 0:00:58.2]} 6. O-O {[%clk 0:00:56.1]} 6... Be7 {[%clk 0:00:57.2]} 7. c4 {[%clk 0:00:55.4]} 7... Nf4 {[%clk 0:00:55.4]} 8. Bxf4 {[%clk 0:00:53.1]} 8... exf4 {[%clk 0:00:55.1]} 9. Nc3 {[%clk 0:00:51.1]} 9... O-O {[%clk 0:00:54.8]} 10. Qd2 {[%clk 0:00:49.3]} 10... f5 {[%clk 0:00:54.5]} 11. Qxf4 {[%clk 0:00:48]} 11... Bd6 {[%clk 0:00:54.2]} 12. Qd2 {[%clk 0:00:45.1]} 12... Qf6 {[%clk 0:00:53.7]} 13. d4 {[%clk 0:00:44]} 13... Qg6 {[%clk 0:00:53]} 14. g3 {[%clk 0:00:41.8]} 14... f4 {[%clk 0:00:50.5]} 15. Nh4 {[%clk 0:00:40.5]} 15... Qg5 {[%clk 0:00:45.3]} 16. c5 {[%clk 0:00:28.7]} 16... Bh3 {[%clk 0:00:44.8]} 17. cxd6 {[%clk 0:00:22.8]} 17... Bxf1 {[%clk 0:00:43.8]} 18. Rxf1 {[%clk 0:00:21.2]} 18... cxd6 {[%clk 0:00:42.2]} 19. Ng2 {[%clk 0:00:17.2]} 19... fxg3 {[%clk 0:00:41]} 20. fxg3 {[%clk 0:00:15.7]} 20... Rxf1+ {[%clk 0:00:40.1]} 21. Bxf1 {[%clk 0:00:14.8]} 21... Qxd2 {[%clk 0:00:37.5]} 22. Nd5 {[%clk 0:00:11.1]} 22... Qxb2 {[%clk 0:00:36.6]} 23. Nde3 {[%clk 0:00:06.2]} 23... Qxd4 {[%clk 0:00:35.5]} 24. Kf2 {[%clk 0:00:03.7]} 24... Nb4 {[%clk 0:00:34.9]} 25. Nf4 {[%clk 0:00:01]} 25... Nc2 {[%clk 0:00:34]} 0-1

[Event "Live Chess"]
[Site "Chess.com"]
[Date "2010.12.06"]
[Round "-"]
[White "hipposcottimus"]
[Black "BrazilCoup"]
[Result "0-1"]
[CurrentPosition "1nr3k1/6pp/8/1pBP4/rbp5/8/5PPP/2R2RK1 w - -"]
[Timezone "UTC"]
[ECO "C42"]
[ECOUrl "https://www.chess.com/openings/Petrovs-Defense-Urusov-Lichtenhein-Defense"]
[UTCDate "2010.12.06"]
[UTCTime "00:22:08"]
[WhiteElo "1530"]
[BlackElo "1604"]
[TimeControl "60"]
[Termination "BrazilCoup won on time"]
[StartTime "00:22:08"]
[EndDate "2010.12.06"]
[EndTime "00:23:49"]
[Link "https://www.chess.com/game/live/74438076"]

1. e4 {[%clk 0:01:00]} 1... e5 {[%clk 0:01:00]} 2. Nf3 {[%clk 0:00:59.6]} 2... Nf6 {[%clk 0:00:58.2]} 3. Bc4 {[%clk 0:00:57.5]} 3... Nxe4 {[%clk 0:00:55.6]} 4. Nxe5 {[%clk 0:00:57]} 4... Nd6 {[%clk 0:00:54.5]} 5. Qf3 {[%clk 0:00:51.8]} 5... Qe7 {[%clk 0:00:52.6]} 6. Bxf7+ {[%clk 0:00:36.6]} 6... Nxf7 {[%clk 0:00:50.5]} 7. Qxf7+ {[%clk 0:00:36.3]} 7... Qxf7 {[%clk 0:00:49.4]} 8. Nxf7 {[%clk 0:00:36]} 8... Kxf7 {[%clk 0:00:48.9]} 9. d4 {[%clk 0:00:35.2]} 9... Be7 {[%clk 0:00:48.4]} 10. O-O {[%clk 0:00:34]} 10... Re8 {[%clk 0:00:47.9]} 11. Nc3 {[%clk 0:00:32.9]} 11... Kg8 {[%clk 0:00:47.6]} 12. Bf4 {[%clk 0:00:30.1]} 12... d6 {[%clk 0:00:45.1]} 13. d5 {[%clk 0:00:28.4]} 13... c6 {[%clk 0:00:43.5]} 14. b3 {[%clk 0:00:25.6]} 14... c5 {[%clk 0:00:42.3]} 15. a3 {[%clk 0:00:23.7]} 15... a6 {[%clk 0:00:41.5]} 16. b4 {[%clk 0:00:22.9]} 16... c4 {[%clk 0:00:40.1]} 17. Na4 {[%clk 0:00:22]} 17... b5 {[%clk 0:00:38.8]} 18. Nb6 {[%clk 0:00:19.5]} 18... Ra7 {[%clk 0:00:38]} 19. Nxc8 {[%clk 0:00:14.1]} 19... Rxc8 {[%clk 0:00:38]} 20. c3 {[%clk 0:00:12.7]} 20... a5 {[%clk 0:00:37.1]} 21. Rae1 {[%clk 0:00:12.4]} 21... Bf6 {[%clk 0:00:32.5]} 22. Bxd6 {[%clk 0:00:09.6]} 22... Bxc3 {[%clk 0:00:30.2]} 23. Bc5 {[%clk 0:00:09.3]} 23... axb4 {[%clk 0:00:28.8]} 24. axb4 {[%clk 0:00:06.7]} 24... Ra4 {[%clk 0:00:27.4]} 25. Rc1 {[%clk 0:00:05.4]} 25... Bxb4 {[%clk 0:00:26.5]} 0-1

[Event "Live Chess"]
[Site "Chess.com"]
[Date "2010.12.06"]
[Round "-"]
[White "helgefin"]
[Black "hipposcottimus"]
[Result "0-1"]
[CurrentPosition "4rrk1/ppp2p1p/2q2pn1/8/6Q1/8/P1P2PP1/3R1K2 w - -"]
[Timezone "UTC"]
[ECO "C58"]
[ECOUrl "https://www.chess.com/openings/Italian-Game-Knight-Attack-Polerio-Bishop-Check-Line-6...Bd7"]
[UTCDate "2010.12.06"]
[UTCTime "00:18:36"]
[WhiteElo "1468"]
[BlackElo "1537"]
[TimeControl "60"]
[Termination "hipposcottimus won by resignation"]
[StartTime "00:18:36"]
[EndDate "2010.12.06"]
[EndTime "00:20:41"]
[Link "https://www.chess.com/game/live/74437350"]

1. e4 {[%clk 0:01:00]} 1... e5 {[%clk 0:01:00]} 2. Nf3 {[%clk 0:00:59.6]} 2... Nc6 {[%clk 0:00:59.6]} 3. Bc4 {[%clk 0:00:59.1]} 3... Nf6 {[%clk 0:00:59.3]} 4. Ng5 {[%clk 0:00:57.5]} 4... d5 {[%clk 0:00:59]} 5. exd5 {[%clk 0:00:56.8]} 5... Na5 {[%clk 0:00:58.5]} 6. Bb5+ {[%clk 0:00:55.7]} 6... Bd7 {[%clk 0:00:54.4]} 7. Bxd7+ {[%clk 0:00:49.2]} 7... Nxd7 {[%clk 0:00:54]} 8. Qf3 {[%clk 0:00:46.3]} 8... Qxg5 {[%clk 0:00:51.4]} 9. Nc3 {[%clk 0:00:40.8]} 9... Bd6 {[%clk 0:00:46.6]} 10. d4 {[%clk 0:00:38.7]} 10... Qe7 {[%clk 0:00:43]} 11. dxe5 {[%clk 0:00:37.3]} 11... Bxe5 {[%clk 0:00:42.1]} 12. O-O {[%clk 0:00:35.5]} 12... O-O {[%clk 0:00:40]} 13. Bd2 {[%clk 0:00:30.9]} 13... Qd6 {[%clk 0:00:39.6]} 14. Rfe1 {[%clk 0:00:28.7]} 14... Bxh2+ {[%clk 0:00:36.1]} 15. Kf1 {[%clk 0:00:27.4]} 15... Nc4 {[%clk 0:00:35.8]} 16. Ne4 {[%clk 0:00:25.3]} 16... Qxd5 {[%clk 0:00:28.1]} 17. Rad1 {[%clk 0:00:20.9]} 17... Qc6 {[%clk 0:00:16.8]} 18. Bc3 {[%clk 0:00:16]} 18... Nxb2 {[%clk 0:00:15.1]} 19. Qg4 {[%clk 0:00:13.8]} 19... Be5 {[%clk 0:00:10.7]} 20. Bxe5 {[%clk 0:00:11.4]} 20... Nxe5 {[%clk 0:00:10.3]} 21. Qf5 {[%clk 0:00:08.6]} 21... Nxd1 {[%clk 0:00:09.8]} 22. Rxd1 {[%clk 0:00:06.2]} 22... Ng6 {[%clk 0:00:07.3]} 23. Qg4 {[%clk 0:00:04.1]} 23... Rae8 {[%clk 0:00:07]} 24. Nf6+ {[%clk 0:00:01.9]} 24... gxf6 {[%clk 0:00:05.3]} 0-1

[Event "Live Chess"]
[Site "Chess.com"]
[Date "2010.12.06"]
[Round "-"]
[White "cyclone007"]
[Black "hipposcottimus"]
[Result "0-1"]
[CurrentPosition "5K2/kr6/2r5/4pp2/1p4p1/8/P7/R7 w - -"]
[Timezone "UTC"]
[ECO "C24"]
[ECOUrl "https://www.chess.com/openings/Bishops-Opening-Berlin-Defense"]
[UTCDate "2010.12.06"]
[UTCTime "00:13:29"]
[WhiteElo "1379"]
[BlackElo "1530"]
[TimeControl "60"]
[Termination "hipposcottimus won on time"]
[StartTime "00:13:29"]
[EndDate "2010.12.06"]
[EndTime "00:15:51"]
[Link "https://www.chess.com/game/live/74436176"]

1. e4 {[%clk 0:01:00]} 1... e5 {[%clk 0:01:00]} 2. Bc4 {[%clk 0:00:58.6]} 2... Nf6 {[%clk 0:00:58.1]} 3. Qf3 {[%clk 0:00:57.7]} 3... Nc6 {[%clk 0:00:57.8]} 4. d3 {[%clk 0:00:56.9]} 4... Nd4 {[%clk 0:00:56.9]} 5. Qd1 {[%clk 0:00:55.6]} 5... d5 {[%clk 0:00:56.3]} 6. c3 {[%clk 0:00:54.8]} 6... dxc4 {[%clk 0:00:55]} 7. cxd4 {[%clk 0:00:53.3]} 7... Qxd4 {[%clk 0:00:54.6]} 8. dxc4 {[%clk 0:00:52.1]} 8... Qxd1+ {[%clk 0:00:53.7]} 9. Kxd1 {[%clk 0:00:51.7]} 9... Bg4+ {[%clk 0:00:52.8]} 10. Ne2 {[%clk 0:00:51.3]} 10... Nxe4 {[%clk 0:00:51.5]} 11. f3 {[%clk 0:00:50.1]} 11... Nf2+ {[%clk 0:00:50.8]} 12. Ke1 {[%clk 0:00:48.1]} 12... Nxh1 {[%clk 0:00:50.4]} 13. fxg4 {[%clk 0:00:47.2]} 13... Bc5 {[%clk 0:00:49.1]} 14. Nec3 {[%clk 0:00:44.5]} 14... Nf2 {[%clk 0:00:48.3]} 15. Ke2 {[%clk 0:00:42.7]} 15... O-O-O {[%clk 0:00:43.5]} 16. Be3 {[%clk 0:00:41.7]} 16... Bxe3 {[%clk 0:00:39.1]} 17. Kxe3 {[%clk 0:00:41]} 17... Nxg4+ {[%clk 0:00:38.8]} 18. Kf3 {[%clk 0:00:40]} 18... Nxh2+ {[%clk 0:00:38.3]} 19. Kg3 {[%clk 0:00:38.7]} 19... Nf1+ {[%clk 0:00:37.5]} 20. Kh3 {[%clk 0:00:36.7]} 20... Nd2 {[%clk 0:00:37.2]} 21. g3 {[%clk 0:00:35.8]} 21... g6 {[%clk 0:00:33.3]} 22. Nxd2 {[%clk 0:00:33.8]} 22... Rxd2 {[%clk 0:00:33]} 23. Nb5 {[%clk 0:00:32.3]} 23... Rxb2 {[%clk 0:00:31.7]} 24. Nxa7+ {[%clk 0:00:31]} 24... Kb8 {[%clk 0:00:30.4]} 25. Nb5 {[%clk 0:00:30]} 25... f5 {[%clk 0:00:29.5]} 26. Nc3 {[%clk 0:00:28]} 26... g5 {[%clk 0:00:29.1]} 27. Nd5 {[%clk 0:00:27.2]} 27... g4+ {[%clk 0:00:28.5]} 28. Kh4 {[%clk 0:00:24.9]} 28... Rh2+ {[%clk 0:00:28.1]} 29. Kg5 {[%clk 0:00:23]} 29... h6+ {[%clk 0:00:27.8]} 30. Kg6 {[%clk 0:00:21.6]} 30... Rg2 {[%clk 0:00:26.9]} 31. Kg7 {[%clk 0:00:20.9]} 31... Rd8 {[%clk 0:00:25.7]} 32. Nf6 {[%clk 0:00:19.6]} 32... Rxg3 {[%clk 0:00:25]} 33. Kf7 {[%clk 0:00:18.2]} 33... h5 {[%clk 0:00:22.4]} 34. Ke7 {[%clk 0:00:17.5]} 34... Rc8 {[%clk 0:00:20.7]} 35. Nxh5 {[%clk 0:00:16.5]} 35... Rh3 {[%clk 0:00:19]} 36. Nf6 {[%clk 0:00:15.7]} 36... Rh6 {[%clk 0:00:18.2]} 37. Nd7+ {[%clk 0:00:14.9]} 37... Ka7 {[%clk 0:00:16.1]} 38. Nf6 {[%clk 0:00:13.5]} 38... Rg6 {[%clk 0:00:14.5]} 39. Kf7 {[%clk 0:00:11.9]} 39... Rg5 {[%clk 0:00:12.1]} 40. Nh7 {[%clk 0:00:11]} 40... Rh5 {[%clk 0:00:10.3]} 41. Ng5 {[%clk 0:00:08.4]} 41... Rh3 {[%clk 0:00:10]} 42. Ne6 {[%clk 0:00:07.1]} 42... Rc3 {[%clk 0:00:07.3]} 43. Ke7 {[%clk 0:00:07.1]} 43... Rxc4 {[%clk 0:00:06.8]} 44. Kd7 {[%clk 0:00:07.1]} 44... Rc6 {[%clk 0:00:06.5]} 45. Nxc7 {[%clk 0:00:06.5]} 45... R6xc7+ {[%clk 0:00:05.3]} 46. Kd6 {[%clk 0:00:05.5]} 46... Rc5 {[%clk 0:00:05]} 47. Ke6 {[%clk 0:00:04.8]} 47... R8c6+ {[%clk 0:00:04.3]} 48. Kf7 {[%clk 0:00:04.8]} 48... b5 {[%clk 0:00:03.3]} 49. Kf8 {[%clk 0:00:01.8]} 49... b4 {[%clk 0:00:02.9]} 50. Kg7 {[%clk 0:00:01.5]} 50... Rb5 {[%clk 0:00:02.6]} 51. Kf8 {[%clk 0:00:01.5]} 51... Rb7 {[%clk 0:00:02.3]} 0-1

[Event "Live Chess"]
[Site "Chess.com"]
[Date "2010.12.06"]
[Round "-"]
[White "hipposcottimus"]
[Black "cyclone007"]
[Result "0-1"]
[CurrentPosition "2r3k1/p2Q3p/1p5B/8/8/2N2N2/PP3PPP/3R2K1 w - -"]
[Timezone "UTC"]
[ECO "C50"]
[ECOUrl "https://www.chess.com/openings/Italian-Game"]
[UTCDate "2010.12.06"]
[UTCTime "00:09:43"]
[WhiteElo "1525"]
[BlackElo "1384"]
[TimeControl "60"]
[Termination "cyclone007 won on time"]
[StartTime "00:09:43"]
[EndDate "2010.12.06"]
[EndTime "00:11:48"]
[Link "https://www.chess.com/game/live/74435454"]

1. e4 {[%clk 0:01:00]} 1... e5 {[%clk 0:01:00]} 2. Nf3 {[%clk 0:00:59.4]} 2... Nc6 {[%clk 0:00:59.6]} 3. Bc4 {[%clk 0:00:59.1]} 3... Qe7 {[%clk 0:00:58.7]} 4. d4 {[%clk 0:00:55.9]} 4... Na5 {[%clk 0:00:57.5]} 5. Qe2 {[%clk 0:00:45.5]} 5... exd4 {[%clk 0:00:55.1]} 6. O-O {[%clk 0:00:33.1]} 6... Nxc4 {[%clk 0:00:53.2]} 7. Qxc4 {[%clk 0:00:32.2]} 7... c5 {[%clk 0:00:52.2]} 8. c3 {[%clk 0:00:28.1]} 8... Qxe4 {[%clk 0:00:46.6]} 9. Re1 {[%clk 0:00:26.3]} 9... Qxe1+ {[%clk 0:00:45.5]} 10. Nxe1 {[%clk 0:00:25.6]} 10... Be7 {[%clk 0:00:42.1]} 11. cxd4 {[%clk 0:00:24.6]} 11... cxd4 {[%clk 0:00:40.5]} 12. Qxd4 {[%clk 0:00:23.5]} 12... d6 {[%clk 0:00:39.4]} 13. Qxg7 {[%clk 0:00:22.4]} 13... Nf6 {[%clk 0:00:36]} 14. Qxh8+ {[%clk 0:00:20]} 14... Ng8 {[%clk 0:00:34]} 15. Qxg8+ {[%clk 0:00:19]} 15... Kd7 {[%clk 0:00:33.4]} 16. Qxf7 {[%clk 0:00:17.7]} 16... b6 {[%clk 0:00:32]} 17. Bg5 {[%clk 0:00:17.3]} 17... Kc6 {[%clk 0:00:29.6]} 18. Qxe7 {[%clk 0:00:16.9]} 18... Bd7 {[%clk 0:00:28.4]} 19. Nc3 {[%clk 0:00:16]} 19... Re8 {[%clk 0:00:27.9]} 20. Qf6 {[%clk 0:00:13.2]} 20... Re6 {[%clk 0:00:26.1]} 21. Qd4 {[%clk 0:00:11.3]} 21... d5 {[%clk 0:00:24.5]} 22. Qxd5+ {[%clk 0:00:08.4]} 22... Kc7 {[%clk 0:00:21.7]} 23. Nf3 {[%clk 0:00:07.2]} 23... Rc6 {[%clk 0:00:19.3]} 24. Bf4+ {[%clk 0:00:05.9]} 24... Kd8 {[%clk 0:00:17.1]} 25. Rd1 {[%clk 0:00:04.5]} 25... Ke8 {[%clk 0:00:14.8]} 26. Qxd7+ {[%clk 0:00:03.6]} 26... Kf8 {[%clk 0:00:11.2]} 27. Bg5 {[%clk 0:00:02.8]} 27... Kg8 {[%clk 0:00:09.6]} 28. Bh6 {[%clk 0:00:01.1]} 28... Rc8 {[%clk 0:00:08.5]} 0-1

[Event "Live Chess"]
[Site "Chess.com"]
[Date "2010.12.06"]
[Round "-"]
[White "hipposcottimus"]
[Black "YubanYankinov"]
[Result "1-0"]
[CurrentPosition "8/8/6p1/4Pp2/3Q4/8/P1k2PPP/3R2K1 b - -"]
[Timezone "UTC"]
[ECO "B10"]
[ECOUrl "https://www.chess.com/openings/Caro-Kann-Defense-2.Nf3-d5"]
[UTCDate "2010.12.06"]
[UTCTime "00:07:03"]
[WhiteElo "1536"]
[BlackElo "1281"]
[TimeControl "60"]
[Termination "hipposcottimus won on time"]
[StartTime "00:07:03"]
[EndDate "2010.12.06"]
[EndTime "00:09:12"]
[Link "https://www.chess.com/game/live/74434932"]

1. e4 {[%clk 0:01:00]} 1... c6 {[%clk 0:01:00]} 2. Nf3 {[%clk 0:00:59.5]} 2... d5 {[%clk 0:00:59.1]} 3. e5 {[%clk 0:00:58.5]} 3... e6 {[%clk 0:00:58.1]} 4. d4 {[%clk 0:00:58.1]} 4... Bb4+ {[%clk 0:00:55.4]} 5. Bd2 {[%clk 0:00:55.5]} 5... Nd7 {[%clk 0:00:54.9]} 6. Bxb4 {[%clk 0:00:54.4]} 6... c5 {[%clk 0:00:54.6]} 7. Bxc5 {[%clk 0:00:52.3]} 7... Qa5+ {[%clk 0:00:54]} 8. Nc3 {[%clk 0:00:48.6]} 8... Nxc5 {[%clk 0:00:51.9]} 9. dxc5 {[%clk 0:00:47.2]} 9... Qxc5 {[%clk 0:00:51.5]} 10. Bb5+ {[%clk 0:00:44.2]} 10... Ke7 {[%clk 0:00:45.8]} 11. O-O {[%clk 0:00:41.9]} 11... Nh6 {[%clk 0:00:44.9]} 12. Nd2 {[%clk 0:00:36.5]} 12... Nf5 {[%clk 0:00:43.4]} 13. Nb3 {[%clk 0:00:35.9]} 13... Rd8 {[%clk 0:00:41.2]} 14. Nxc5 {[%clk 0:00:34.1]} 14... a6 {[%clk 0:00:40]} 15. Ba4 {[%clk 0:00:32.1]} 15... b5 {[%clk 0:00:39.2]} 16. Nxb5 {[%clk 0:00:30.8]} 16... axb5 {[%clk 0:00:38]} 17. Bxb5 {[%clk 0:00:30.2]} 17... Rb8 {[%clk 0:00:36]} 18. Bd3 {[%clk 0:00:26.6]} 18... Bd7 {[%clk 0:00:31.7]} 19. Bxf5 {[%clk 0:00:25.5]} 19... exf5 {[%clk 0:00:29.3]} 20. Qh5 {[%clk 0:00:23]} 20... g6 {[%clk 0:00:26.7]} 21. Qxh7 {[%clk 0:00:21.7]} 21... Be6 {[%clk 0:00:24.8]} 22. Nxe6 {[%clk 0:00:20.5]} 22... Rh8 {[%clk 0:00:22.1]} 23. Qg7 {[%clk 0:00:17.2]} 23... Kxe6 {[%clk 0:00:20.6]} 24. Qf6+ {[%clk 0:00:16.1]} 24... Kd7 {[%clk 0:00:17.9]} 25. Qxf7+ {[%clk 0:00:15.7]} 25... Kc6 {[%clk 0:00:16.8]} 26. Qe6+ {[%clk 0:00:14.7]} 26... Kc5 {[%clk 0:00:16.4]} 27. Qd6+ {[%clk 0:00:13.9]} 27... Kd4 {[%clk 0:00:14.1]} 28. c3+ {[%clk 0:00:13]} 28... Kd3 {[%clk 0:00:12.4]} 29. Rfd1+ {[%clk 0:00:11.8]} 29... Kc2 {[%clk 0:00:11.5]} 30. Rac1+ {[%clk 0:00:10.4]} 30... Kxb2 {[%clk 0:00:10.8]} 31. Rb1+ {[%clk 0:00:06.8]} 31... Kxc3 {[%clk 0:00:09.8]} 32. Rxb8 {[%clk 0:00:06]} 32... Rxb8 {[%clk 0:00:07.7]} 33. Qxb8 {[%clk 0:00:05.6]} 33... Kc4 {[%clk 0:00:06]} 34. Qd6 {[%clk 0:00:05.3]} 34... Kc3 {[%clk 0:00:05.1]} 35. Qxd5 {[%clk 0:00:05]} 35... Kc2 {[%clk 0:00:04.4]} 36. Qd4 {[%clk 0:00:04.6]} 1-0

[Event "Live Chess"]
[Site "Chess.com"]
[Date "2010.12.06"]
[Round "-"]
[White "YubanYankinov"]
[Black "hipposcottimus"]
[Result "0-1"]
[CurrentPosition "3r3k/2p4p/p4p2/1p5q/4p3/2P3b1/PP3P2/5K2 w - -"]
[Timezone "UTC"]
[ECO "C65"]
[ECOUrl "https://www.chess.com/openings/Ruy-Lopez-Opening-Berlin-Defense-4.O-O"]
[UTCDate "2010.12.06"]
[UTCTime "00:04:37"]
[WhiteElo "1284"]
[BlackElo "1533"]
[TimeControl "60"]
[Termination "hipposcottimus won on time"]
[StartTime "00:04:37"]
[EndDate "2010.12.06"]
[EndTime "00:06:37"]
[Link "https://www.chess.com/game/live/74434420"]

1. e4 {[%clk 0:01:00]} 1... e5 {[%clk 0:01:00]} 2. Nf3 {[%clk 0:00:59.5]} 2... Nc6 {[%clk 0:00:59.7]} 3. Bb5 {[%clk 0:00:58.9]} 3... Nf6 {[%clk 0:00:59.4]} 4. O-O {[%clk 0:00:56.3]} 4... a6 {[%clk 0:00:58.1]} 5. Ba4 {[%clk 0:00:54.8]} 5... b5 {[%clk 0:00:56.8]} 6. Bb3 {[%clk 0:00:53.3]} 6... Bb7 {[%clk 0:00:56.5]} 7. c3 {[%clk 0:00:52.7]} 7... Na5 {[%clk 0:00:55.5]} 8. Bc2 {[%clk 0:00:51.3]} 8... d5 {[%clk 0:00:53]} 9. d3 {[%clk 0:00:48.7]} 9... dxe4 {[%clk 0:00:52.5]} 10. dxe4 {[%clk 0:00:47.8]} 10... Bd6 {[%clk 0:00:51.9]} 11. Be3 {[%clk 0:00:44.9]} 11... O-O {[%clk 0:00:51.6]} 12. Nbd2 {[%clk 0:00:43.5]} 12... Nc4 {[%clk 0:00:48.5]} 13. Re1 {[%clk 0:00:41.4]} 13... Nxd2 {[%clk 0:00:47.6]} 14. Qxd2 {[%clk 0:00:40]} 14... Bxe4 {[%clk 0:00:45.6]} 15. Bxe4 {[%clk 0:00:37.9]} 15... Nxe4 {[%clk 0:00:45.3]} 16. Rad1 {[%clk 0:00:30.2]} 16... Nxd2 {[%clk 0:00:44.1]} 17. Rxd2 {[%clk 0:00:29.2]} 17... Qe7 {[%clk 0:00:42.6]} 18. Red1 {[%clk 0:00:28.8]} 18... Rad8 {[%clk 0:00:38.6]} 19. Bg5 {[%clk 0:00:22.5]} 19... f6 {[%clk 0:00:37.7]} 20. Bh4 {[%clk 0:00:20.8]} 20... e4 {[%clk 0:00:36.6]} 21. Nd4 {[%clk 0:00:18.8]} 21... Qe5 {[%clk 0:00:35.8]} 22. Nf5 {[%clk 0:00:18.1]} 22... Qxh2+ {[%clk 0:00:34.4]} 23. Kf1 {[%clk 0:00:15.8]} 23... Qh1+ {[%clk 0:00:34.1]} 24. Ke2 {[%clk 0:00:15.4]} 24... Qxg2 {[%clk 0:00:33.5]} 25. Nxg7 {[%clk 0:00:12.7]} 25... Qf3+ {[%clk 0:00:31.8]} 26. Kf1 {[%clk 0:00:11.2]} 26... Kxg7 {[%clk 0:00:29.5]} 27. Re2 {[%clk 0:00:09.9]} 27... Kh8 {[%clk 0:00:25.4]} 28. Re3 {[%clk 0:00:09.4]} 28... Qh1+ {[%clk 0:00:23.1]} 29. Ke2 {[%clk 0:00:07.7]} 29... Qxh4 {[%clk 0:00:20.7]} 30. Rg1 {[%clk 0:00:05.5]} 30... Qh5+ {[%clk 0:00:19.6]} 31. Kf1 {[%clk 0:00:03.4]} 31... Rg8 {[%clk 0:00:19.2]} 32. Reg3 {[%clk 0:00:02.9]} 32... Rxg3 {[%clk 0:00:15.8]} 33. Rxg3 {[%clk 0:00:02.3]} 33... Bxg3 {[%clk 0:00:14.7]} 0-1

[Event "Live Chess"]
[Site "Chess.com"]
[Date "2010.12.06"]
[Round "-"]
[White "hipposcottimus"]
[Black "YubanYankinov"]
[Result "0-1"]
[CurrentPosition "6k1/5p1p/P3p1p1/4b3/5n2/N7/P4K2/R3R3 w - -"]
[Timezone "UTC"]
[ECO "B20"]
[ECOUrl "https://www.chess.com/openings/Sicilian-Defense"]
[UTCDate "2010.12.06"]
[UTCTime "00:02:13"]
[WhiteElo "1530"]
[BlackElo "1287"]
[TimeControl "60"]
[Termination "YubanYankinov won on time"]
[StartTime "00:02:13"]
[EndDate "2010.12.06"]
[EndTime "00:04:17"]
[Link "https://www.chess.com/game/live/74433879"]

1. e4 {[%clk 0:01:00]} 1... c5 {[%clk 0:01:00]} 2. Bb5 {[%clk 0:00:58]} 2... a6 {[%clk 0:00:57.3]} 3. Be2 {[%clk 0:00:57.5]} 3... b5 {[%clk 0:00:56.6]} 4. Nf3 {[%clk 0:00:57.2]} 4... d6 {[%clk 0:00:56.1]} 5. d4 {[%clk 0:00:57]} 5... cxd4 {[%clk 0:00:54.3]} 6. Nxd4 {[%clk 0:00:56.8]} 6... Nf6 {[%clk 0:00:53.9]} 7. f3 {[%clk 0:00:50.6]} 7... Bd7 {[%clk 0:00:51]} 8. O-O {[%clk 0:00:49.9]} 8... Nc6 {[%clk 0:00:50.2]} 9. c3 {[%clk 0:00:48.3]} 9... g6 {[%clk 0:00:47.7]} 10. Nxc6 {[%clk 0:00:46.5]} 10... Bxc6 {[%clk 0:00:45.8]} 11. Bg5 {[%clk 0:00:45.3]} 11... Bg7 {[%clk 0:00:43.9]} 12. f4 {[%clk 0:00:43.5]} 12... O-O {[%clk 0:00:42.6]} 13. e5 {[%clk 0:00:42.8]} 13... dxe5 {[%clk 0:00:41.5]} 14. fxe5 {[%clk 0:00:42.2]} 14... Ne4 {[%clk 0:00:37.8]} 15. Qb3 {[%clk 0:00:34]} 15... Nxg5 {[%clk 0:00:35.4]} 16. Bf3 {[%clk 0:00:33]} 16... Bd5 {[%clk 0:00:30.6]} 17. Bxd5 {[%clk 0:00:31.5]} 17... e6 {[%clk 0:00:28.1]} 18. Bxa8 {[%clk 0:00:30.4]} 18... Qxa8 {[%clk 0:00:26.4]} 19. Na3 {[%clk 0:00:30.1]} 19... Bxe5 {[%clk 0:00:25.2]} 20. c4 {[%clk 0:00:27.8]} 20... Qb8 {[%clk 0:00:24.3]} 21. cxb5 {[%clk 0:00:26.3]} 21... Bxh2+ {[%clk 0:00:23.1]} 22. Kh1 {[%clk 0:00:24]} 22... Be5 {[%clk 0:00:19.4]} 23. bxa6 {[%clk 0:00:18]} 23... Ne4 {[%clk 0:00:18.8]} 24. Qxb8 {[%clk 0:00:15.9]} 24... Ng3+ {[%clk 0:00:18.3]} 25. Kg1 {[%clk 0:00:15]} 25... Rxb8 {[%clk 0:00:17.4]} 26. Kh2 {[%clk 0:00:14.2]} 26... Rxb2 {[%clk 0:00:16.7]} 27. Kh3 {[%clk 0:00:09.4]} 27... Ne2 {[%clk 0:00:16.3]} 28. Rfe1 {[%clk 0:00:08.3]} 28... Nf4+ {[%clk 0:00:15.9]} 29. Kg4 {[%clk 0:00:05.7]} 29... Rxg2+ {[%clk 0:00:15.2]} 30. Kf3 {[%clk 0:00:03.4]} 30... Rg3+ {[%clk 0:00:13.1]} 31. Kxg3 {[%clk 0:00:01.6]} 31... Ne2+ {[%clk 0:00:12.6]} 32. Kf2 {[%clk 0:00:01.1]} 32... Nf4 {[%clk 0:00:11.7]} 0-1

[Event "Live Chess"]
[Site "Chess.com"]
[Date "2010.12.06"]
[Round "-"]
[White "unga123"]
[Black "hipposcottimus"]
[Result "0-1"]
[CurrentPosition "r2q1rk1/pp2b1pp/2np4/4p3/8/2P2N2/PPb1BPPP/R1BR2K1 w - -"]
[Timezone "UTC"]
[ECO "C45"]
[ECOUrl "https://www.chess.com/openings/Scotch-Game"]
[UTCDate "2010.12.06"]
[UTCTime "00:00:52"]
[WhiteElo "1560"]
[BlackElo "1542"]
[TimeControl "60"]
[Termination "hipposcottimus won by resignation"]
[StartTime "00:00:52"]
[EndDate "2010.12.06"]
[EndTime "00:01:33"]
[Link "https://www.chess.com/game/live/74433606"]

1. e4 {[%clk 0:01:00]} 1... e5 {[%clk 0:01:00]} 2. Nf3 {[%clk 0:00:59.6]} 2... Nc6 {[%clk 0:00:59.4]} 3. d4 {[%clk 0:00:58.9]} 3... Nf6 {[%clk 0:00:59.1]} 4. d5 {[%clk 0:00:57.7]} 4... Ne7 {[%clk 0:00:57.2]} 5. Nc3 {[%clk 0:00:57]} 5... d6 {[%clk 0:00:56.8]} 6. Be2 {[%clk 0:00:55.5]} 6... c6 {[%clk 0:00:56.5]} 7. dxc6 {[%clk 0:00:53.8]} 7... Nxc6 {[%clk 0:00:56.2]} 8. O-O {[%clk 0:00:53]} 8... Be7 {[%clk 0:00:55.9]} 9. Nd5 {[%clk 0:00:51.9]} 9... O-O {[%clk 0:00:55.6]} 10. Nxf6+ {[%clk 0:00:50.5]} 10... Bxf6 {[%clk 0:00:55]} 11. c3 {[%clk 0:00:46.1]} 11... Be7 {[%clk 0:00:54.7]} 12. Qc2 {[%clk 0:00:37.2]} 12... f5 {[%clk 0:00:54.3]} 13. exf5 {[%clk 0:00:35.7]} 13... Bxf5 {[%clk 0:00:52.9]} 14. Rd1 {[%clk 0:00:35.4]} 14... Bxc2 {[%clk 0:00:51.4]} 0-1